bitfinex-derivatives/quotes_BTCF0:USTF0_20241203
["timestamp","ask_amount","ask_price","bid_price","bid_amount"]
[1733267761783,0.0081025,96028.0,96027.0,0.20197083]
[1733267763291,0.19515975,96028.0,96027.0,0.20197083]
[1733267763493,0.0081025,96028.0,96027.0,0.20197083]
[1733267763985,0.0081025,96028.0,96027.0,0.32269083]
[1733267764185,0.10346178,96028.0,96027.0,0.32269083]
[1733267765297,0.10346178,96028.0,96027.0,0.10513683]
[1733267765298,0.15549478,96028.0,96027.0,0.10513683]
[1733267765591,0.15549478,96028.0,96022.0,0.3608]
[1733267765592,0.052036,96023.0,96022.0,0.3608]
[1733267765981,0.25829171,96023.0,96022.0,0.3608]
[1733267766182,0.25829171,96023.0,96022.0,0.46493683]
[1733267766183,0.26115421,96023.0,96022.0,0.46493683]
[1733267766584,0.26115421,96023.0,96022.0,0.10413683]
[1733267766780,0.26115421,96023.0,96022.0,0.10513683]
[1733267766985,0.26115421,96023.0,96022.0,0.001]
[1733267767283,0.26115421,96023.0,96022.0,0.10514225]
[1733267767582,0.26115421,96023.0,96022.0,0.001]
[1733267767982,0.5105495,96023.0,96022.0,0.001]
[1733267768183,0.38749087,96023.0,96022.0,0.001]
[1733267768387,0.052041,96015.0,96014.0,0.05204]
[1733267769187,0.15026278,96015.0,96014.0,0.05204]
[1733267769390,0.26115921,96015.0,96014.0,0.05204]
[1733267769990,0.26115921,96015.0,96014.0,0.05904]
[1733267770388,0.15026278,96015.0,96014.0,0.05904]
[1733267771498,0.16591197,96015.0,96014.0,0.05904]
[1733267771694,0.26127197,96015.0,96014.0,0.05904]
[1733267771899,0.15026278,96015.0,96014.0,0.05904]
[1733267772296,0.15026278,96015.0,96002.0,0.0026]
[1733267772297,0.45902178,96015.0,96002.0,0.0026]
[1733267772592,0.45902178,96015.0,95995.0,0.0104]
[1733267772593,0.052051,95996.0,95995.0,0.0104]
[1733267772993,0.15427606,95996.0,95995.0,0.0104]
[1733267773194,0.27299341,95996.0,95995.0,0.0104]
[1733267773397,0.30428113,95996.0,95995.0,0.0104]
[1733267773598,0.30428113,95996.0,95995.0,0.05212792]
[1733267773599,0.19789582,95996.0,95995.0,0.05212792]
[1733267773805,0.44726345,95996.0,95995.0,0.05212792]
[1733267774000,0.44726345,95996.0,95995.0,0.15629946]
[1733267774298,0.09567796,95996.0,95995.0,0.15629946]
[1733267774493,0.28371187,95996.0,95995.0,0.15629946]
[1733267775191,0.28471187,95996.0,95995.0,0.17129946]
[1733267775388,0.14730465,95996.0,95995.0,0.17129946]
[1733267776103,0.19935465,95996.0,95995.0,0.11924846]
[1733267776293,0.19935465,95996.0,95995.0,0.01507692]
[1733267776689,0.33620677,95996.0,95995.0,0.01507692]
[1733267777298,0.33620677,95996.0,95989.0,0.3608]
[1733267777299,0.19935465,95996.0,95989.0,0.3608]
[1733267777505,0.052054,95990.0,95989.0,0.3608]
[1733267777794,0.052054,95990.0,95979.0,0.05206]
[1733267777795,0.052059,95981.0,95979.0,0.05206]
[1733267777999,0.14344215,95980.0,95979.0,0.05206]
[1733267778296,0.14630465,95980.0,95979.0,0.05206]
[1733267778496,0.05348919,95980.0,95979.0,0.15635266]
[1733267779292,0.05348919,95980.0,95979.0,0.00912112]
[1733267779293,0.10654819,95980.0,95979.0,0.00912112]
[1733267780896,0.10754819,95980.0,95979.0,0.01812112]
[1733267781299,0.4177215,95980.0,95979.0,0.01812112]
[1733267781499,0.46834819,95980.0,95979.0,0.01812112]
[1733267781692,0.58460352,95980.0,95979.0,0.01812112]
[1733267781893,0.58460352,95980.0,95971.0,0.00156295]
[1733267781894,0.052063,95972.0,95971.0,0.00156295]
[1733267782099,0.412863,95972.0,95971.0,0.00156295]
[1733267782398,0.412863,95972.0,95960.0,0.0104]
[1733267782399,0.052069,95961.0,95960.0,0.0104]
[1733267782702,0.052071,95959.0,95958.0,0.05207]
[1733267782901,0.23814306,95959.0,95958.0,0.05218612]
[1733267783198,0.28877825,95959.0,95958.0,0.05218612]
[1733267783402,0.15046019,95959.0,95958.0,0.05218612]
[1733267783790,0.12828562,95959.0,95958.0,0.05218612]
[1733267784099,0.12828562,95959.0,95958.0,0.00011612]
[1733267784599,0.12928562,95959.0,95958.0,0.00511612]
[1733267784797,0.12928562,95959.0,95958.0,0.05718712]
[1733267785295,0.0038625,95959.0,95958.0,0.16139883]
[1733267785802,0.0038625,95959.0,95958.0,0.16339883]
[1733267786305,0.0559325,95959.0,95958.0,0.11132783]
[1733267787900,0.0559325,95959.0,95958.0,0.16339883]
[1733267788496,0.17977402,95959.0,95958.0,0.16339883]
[1733267788806,0.0038625,95959.0,95958.0,0.16339883]
[1733267789003,0.0967492,95959.0,95958.0,0.16339883]
[1733267789201,0.0038625,95959.0,95958.0,0.16339883]
[1733267789702,0.0967492,95959.0,95958.0,0.16339883]
[1733267789904,0.09675669,95959.0,95958.0,0.16339883]
[1733267790094,0.0038625,95959.0,95958.0,0.16339883]
[1733267790295,0.09675483,95959.0,95958.0,0.16339883]
[1733267790603,0.0559325,95959.0,95958.0,0.11132783]
[1733267792403,0.17977402,95959.0,95958.0,0.11132783]
[1733267792704,0.0559325,95959.0,95958.0,0.11132783]
[1733267793404,0.0559325,95959.0,95958.0,0.16339883]
[1733267793798,0.0559325,95959.0,95958.0,0.11132783]
[1733267795008,0.0559325,95959.0,95958.0,0.16339883]
[1733267796612,0.0559325,95959.0,95958.0,0.11132783]
[1733267798111,0.10657933,95959.0,95958.0,0.00711612]
[1733267799014,0.10657933,95959.0,95942.0,0.1744]
[1733267799015,0.052077,95946.0,95942.0,0.0052]
[1733267799199,0.052077,95946.0,95940.0,0.00156329]
[1733267799200,0.05208,95941.0,95940.0,0.00156329]
[1733267799401,0.03149366,95941.0,95940.0,0.00156329]
[1733267800008,0.08214966,95941.0,95940.0,0.00166327]
[1733267800709,0.08314966,95941.0,95940.0,0.00666327]
[1733267801102,0.26948952,95941.0,95940.0,0.00666327]
[1733267801303,0.08314966,95941.0,95940.0,0.00666327]
[1733267801706,0.08315112,95941.0,95940.0,0.00666327]
[1733267801907,0.21895152,95941.0,95940.0,0.00666327]
[1733267802104,0.08415112,95941.0,95940.0,0.00966327]
[1733267802516,0.22003673,95941.0,95940.0,0.00966327]
[1733267802704,0.22003673,95941.0,95940.0,0.06174427]
[1733267802908,0.22003867,95941.0,95940.0,0.06174427]
[1733267803104,0.08415112,95941.0,95940.0,0.06174427]
[1733267803306,0.22002944,95941.0,95940.0,0.06174427]
[1733267803510,0.03349366,95941.0,95940.0,0.06174427]
[1733267803710,0.03349366,95941.0,95940.0,0.16597553]
[1733267803711,0.24205601,95941.0,95940.0,0.16597553]
[1733267803914,0.05551996,95941.0,95940.0,0.16597553]
[1733267804319,0.0048625,95941.0,95940.0,0.16597553]
[1733267805815,0.16039837,95941.0,95940.0,0.16597553]
[1733267806220,0.0048625,95941.0,95940.0,0.16597553]
[1733267806420,0.0555138,95941.0,95940.0,0.16597553]
[1733267806920,0.0104,95946.0,95941.0,0.05208]
[1733267806921,0.15561534,95942.0,95941.0,0.05208]
[1733267807122,0.15561534,95944.0,95942.0,0.052079]
[1733267807324,0.15561534,95943.0,95942.0,0.052079]
[1733267807820,0.15561534,95943.0,95942.0,0.15630755]
[1733267808211,0.0104,95946.0,95943.0,0.052079]
[1733267808212,0.001,95944.0,95943.0,0.052079]
[1733267808615,0.10543179,95944.0,95943.0,0.052079]
[1733267808823,0.0104,95946.0,95945.0,0.052078]
[1733267809121,0.0104,95951.0,95950.0,0.052075]
[1733267809323,0.1973311,95958.0,95950.0,0.659115]
[1733267809535,0.1973311,95958.0,95957.0,0.3608]
[1733267809536,0.0104,95958.0,95957.0,0.3608]
[1733267810031,0.0104,95958.0,95957.0,0.4650204]
[1733267810826,0.0104,95958.0,95957.0,0.4680204]
[1733267811017,0.0104,95958.0,95957.0,0.4710204]
[1733267811018,0.0114,95958.0,95957.0,0.4710204]
[1733267811214,0.0114,95958.0,95957.0,0.5158204]
[1733267811415,0.0026,95961.0,95957.0,0.5158204]
[1733267811615,8.719e-05,95965.0,95964.0,0.052067]
[1733267811828,0.052051,95995.0,95964.0,0.16924]
[1733267811829,0.0026,95972.0,95964.0,0.16924]
[1733267812016,0.0026,95976.0,95971.0,0.3608]
[1733267812225,0.0026,95981.0,95980.0,0.052059]
[1733267812423,0.1869311,95984.0,95983.0,0.052057]
[1733267812617,0.0026,95991.0,95980.0,0.1692]
[1733267812825,0.11633518,95990.0,95987.0,0.052055]
[1733267813021,0.11633518,95989.0,95987.0,0.052055]
[1733267813225,0.26913747,95995.0,95987.0,0.052055]
[1733267813527,0.33337603,95994.0,95987.0,0.052055]
[1733267813726,0.11628956,95993.0,95987.0,0.052055]
[1733267813928,0.008,95990.0,95987.0,0.052055]
[1733267814225,0.008,95990.0,95980.0,0.30353521]
[1733267814226,0.004,95989.0,95988.0,0.052054]
[1733267814831,0.008,95995.0,95988.0,0.052054]
[1733267814832,0.004,95993.0,95988.0,0.052054]
[1733267815030,0.008,95990.0,95980.0,0.30353521]
[1733267815224,0.008,95990.0,95989.0,0.15623314]
[1733267815627,0.008,95990.0,95989.0,0.052054]
[1733267815932,0.008,95990.0,95989.0,0.15636461]
[1733267816526,0.004,95993.0,95992.0,0.052052]
[1733267816729,0.004,95993.0,95992.0,0.221252]
[1733267817123,0.004,95993.0,95992.0,0.32543006]
[1733267817321,0.048,95997.0,95996.0,0.05205]
[1733267817528,0.0454,95997.0,95996.0,0.05205]
[1733267819636,0.24098957,95997.0,95996.0,0.05205]
[1733267820024,0.23198957,95997.0,95996.0,0.05205]
[1733267820227,0.0454,95997.0,95996.0,0.05405]
[1733267820732,0.0514,95997.0,95996.0,0.05405]
[1733267821734,0.0454,95997.0,95996.0,0.05405]
[1733267821926,0.0454,95997.0,95996.0,0.05605]
[1733267822535,0.23198957,95997.0,95996.0,0.05605]
[1733267822730,0.0454,95997.0,95996.0,0.05605]
[1733267823536,0.0454,95997.0,95996.0,0.05505]
[1733267823835,0.18620187,95999.0,95997.0,0.052049]
[1733267824028,0.04379657,96000.0,95999.0,0.052048]
[1733267824433,9.657e-05,96000.0,95999.0,0.15621846]
[1733267824731,0.00156296,96001.0,95999.0,0.15621846]
[1733267824935,0.03949371,96001.0,95999.0,0.51701846]
[1733267825129,5.3e-07,96001.0,96000.0,0.25306]
[1733267825329,0.0026,96007.0,96000.0,0.25306]
[1733267825330,0.0026,96007.0,96006.0,0.052045]
[1733267825525,0.0026,96014.0,96013.0,0.052041]
[1733267825727,0.0026,96022.0,96021.0,0.052036]
[1733267825926,0.0026,96022.0,96013.0,0.218201]
[1733267825927,0.00524,96028.0,96026.0,0.052034]
[1733267826133,0.28051182,96027.0,96026.0,0.052034]
[1733267826337,0.09430995,96027.0,96026.0,0.052034]
[1733267826839,0.0437,96027.0,96026.0,0.052034]
[1733267827732,0.0447,96027.0,96026.0,0.052034]
[1733267828644,0.4055,96027.0,96026.0,0.052034]
[1733267828937,0.4075,96027.0,96026.0,0.052034]
[1733267829337,0.4055,96027.0,96026.0,0.052034]
[1733267829544,0.4085,96027.0,96026.0,0.052034]
[1733267829839,0.4075,96027.0,96026.0,0.052034]
[1733267830037,0.4095,96027.0,96026.0,0.052034]
[1733267830340,0.0487,96027.0,96026.0,0.052034]
[1733267830542,0.0487,96027.0,96026.0,0.15617192]
[1733267831138,0.04913135,96027.0,96026.0,0.15617192]
[1733267831437,0.05113135,96027.0,96026.0,0.15617192]
[1733267832929,0.05113135,96027.0,96018.0,0.16612]
[1733267833134,0.05113135,96027.0,96018.0,0.218158]
[1733267833441,0.00143135,96023.0,96022.0,0.052036]
[1733267833837,0.00143135,96023.0,96022.0,0.15617825]
[1733267835131,0.00143135,96023.0,96022.0,0.052036]
[1733267835539,0.00143135,96023.0,96022.0,0.15617825]
[1733267836032,0.00243135,96023.0,96022.0,0.15617825]
[1733267836235,0.00343135,96023.0,96022.0,0.15617825]
[1733267838043,0.00011754,96038.0,96037.0,0.052028]
[1733267838240,0.00011754,96038.0,96037.0,0.21827147]
[1733267838754,0.00011754,96038.0,96037.0,0.32241372]
[1733267838940,0.15520107,96038.0,96037.0,0.32241372]
[1733267839139,0.05072139,96038.0,96037.0,0.32241372]
[1733267839343,0.06372139,96038.0,96037.0,0.15729372]
[1733267840447,0.06515249,96038.0,96037.0,0.15729372]
[1733267841050,0.11717949,96038.0,96037.0,0.00112347]
[1733267841546,0.23077203,96038.0,96037.0,0.00112347]
[1733267841747,0.36267259,96038.0,96037.0,0.00112347]
[1733267845241,0.76153556,96038.0,96024.0,0.0104]
[1733267845442,0.76153556,96038.0,96017.0,0.0104]
[1733267845443,0.052038,96018.0,96017.0,0.0104]
[1733267845646,0.052038,96018.0,96002.0,0.16612]
[1733267845647,0.052045,96005.0,96004.0,0.062446]
[1733267845847,0.052047,96002.0,96001.0,0.00156225]
[1733267846050,0.10265085,96002.0,96001.0,0.00156225]
[1733267846253,0.10267408,96002.0,96001.0,0.00164414]
[1733267846451,0.10410518,96002.0,96001.0,0.00164414]
[1733267846761,0.05205818,96002.0,96001.0,0.05369114]
[1733267847659,0.05205818,96002.0,96001.0,0.15785617]
[1733267848353,0.10510518,96002.0,96001.0,0.16285617]
[1733267848553,0.60187669,96002.0,96001.0,0.16285617]
[1733267848753,0.65250377,96002.0,96001.0,0.16285617]
[1733267849052,0.46690518,96002.0,96001.0,0.01064414]
[1733267849257,0.58069733,96002.0,96001.0,0.01064414]
[1733267851053,0.46690518,96002.0,96001.0,0.01064414]
[1733267851452,0.58081609,96002.0,96001.0,0.01064414]
[1733267851963,1.13840563,96002.0,96001.0,0.00908189]
[1733267852153,1.05243651,96002.0,96001.0,0.00908189]
[1733267852362,1.00038951,96002.0,95991.0,0.0104]
[1733267852552,1.00038951,96002.0,95985.0,0.052056]
[1733267852553,0.052055,95986.0,95985.0,0.052056]
[1733267853059,0.10268208,95986.0,95985.0,0.052056]
[1733267853258,0.28929538,95986.0,95985.0,0.052056]
[1733267853452,0.28929538,95986.0,95985.0,0.05213386]
[1733267853453,0.10411318,95986.0,95985.0,0.05213386]
[1733267853654,0.0534861,95986.0,95985.0,7.786e-05]
[1733267853855,0.21870995,95986.0,95985.0,0.00507786]
[1733267854352,0.10511318,95986.0,95985.0,0.00507786]
[1733267855162,0.10611318,95986.0,95985.0,0.00507786]
[1733267855456,0.10611998,95986.0,95985.0,0.00507786]
[1733267855657,0.2926228,95986.0,95985.0,0.00507786]
[1733267855850,0.10611998,95986.0,95985.0,0.00507786]
[1733267856361,0.10611998,95986.0,95972.0,0.0104]
[1733267856660,0.10611998,95986.0,95965.0,0.0052]
[1733267856661,0.3608,95973.0,95966.0,0.0104]
[1733267856969,0.052065,95969.0,95968.0,0.052065]
[1733267857155,0.10270388,95969.0,95968.0,0.052065]
[1733267857354,0.10413645,95969.0,95968.0,0.052065]
[1733267857660,0.10413645,95969.0,95968.0,0.05219681]
[1733267857661,0.0534961,95969.0,95968.0,0.05219681]
[1733267857860,0.10413673,95969.0,95968.0,0.05219681]
[1733267858055,0.0534961,95969.0,95968.0,0.05219681]
[1733267858258,0.20869621,95969.0,95968.0,0.05219681]
[1733267858564,0.0014311,95969.0,95968.0,0.05219681]
[1733267859252,0.0024311,95969.0,95968.0,0.05219681]
[1733267859758,0.0544961,95969.0,95968.0,0.05219681]
[1733267860260,0.0554961,95969.0,95968.0,0.05219681]
[1733267860963,0.0034311,95969.0,95968.0,0.05219681]
[1733267861163,0.0034311,95969.0,95968.0,0.15639766]
[1733267863253,0.0034311,95969.0,95968.0,0.51719766]
[1733267867565,0.0034311,95969.0,95968.0,0.15639766]
[1733267868664,0.12758599,95969.0,95968.0,0.15639766]
[1733267868859,0.0034311,95969.0,95968.0,0.32223766]
[1733267869359,0.05668599,95970.0,95968.0,0.32223766]
[1733267869569,0.3399,96013.0,95969.0,0.3608]
[1733267869570,0.15520011,95978.0,95969.0,0.3608]
[1733267869763,0.18642693,95986.0,95977.0,0.3608]
[1733267869965,0.18642693,95990.0,95989.0,0.052054]
[1733267870160,0.18642693,96000.0,95989.0,0.16584]
[1733267870459,0.18642693,96005.0,95998.0,0.052049]
[1733267870658,0.05061994,96004.0,95998.0,0.052049]
[1733267870956,0.00156305,96006.0,96005.0,0.052045]
[1733267871156,0.05217986,96006.0,96005.0,0.052045]
[1733267871765,0.05217986,96006.0,96005.0,0.15620569]
[1733267872066,0.05717986,96006.0,96005.0,0.15620569]
[1733267872259,0.06617986,96006.0,96005.0,0.15620569]
[1733267872965,0.19298998,96006.0,96005.0,0.15620569]
[1733267873167,0.05717986,96006.0,96005.0,0.15620569]
[1733267873467,0.21749597,96006.0,96005.0,0.15620569]
[1733267873667,0.21249597,96006.0,96005.0,0.15820569]
[1733267874961,0.21249597,96006.0,96005.0,0.15620569]
[1733267875560,0.21349597,96006.0,96005.0,0.052045]
[1733267877776,0.21249597,96006.0,96005.0,0.052045]
[1733267878063,0.21749597,96006.0,96005.0,0.052045]
[1733267878469,0.22049597,96006.0,96005.0,0.052045]
[1733267878769,0.22003221,96006.0,96005.0,0.052045]
[1733267878974,0.21403221,96006.0,96005.0,0.052045]
[1733267879274,0.22303221,96006.0,96005.0,0.052045]
[1733267879872,0.22503221,96006.0,96005.0,0.052045]
[1733267880173,0.17298821,96006.0,96005.0,0.052045]
[1733267880575,0.17298821,96006.0,96005.0,0.15620569]
[1733267882573,0.052046,96002.0,96001.0,0.052047]
[1733267882874,0.052046,96002.0,95996.0,0.1658]
[1733267882875,0.05062387,96002.0,95998.0,0.10416069]
[1733267883173,0.05062387,96001.0,96000.0,0.052048]
[1733267883366,0.05062387,96001.0,95996.0,0.1658]
[1733267883564,0.05062279,96000.0,95999.0,0.052048]
[1733267883765,0.15834426,96000.0,95996.0,0.1658]
[1733267883967,0.15835207,95999.0,95998.0,0.052049]
[1733267884165,0.05062279,95999.0,95998.0,0.052049]
[1733267884368,0.15847822,95999.0,95998.0,0.15621729]
[1733267884569,0.05062279,95999.0,95998.0,0.10416829]
[1733267884775,0.10785543,95999.0,95998.0,0.10416829]
[1733267884976,0.15847822,95999.0,95997.0,0.052049]
[1733267885173,0.052049,95998.0,95997.0,0.052049]
[1733267885373,0.21052722,95998.0,95997.0,0.052049]
[1733267885672,0.21052722,95998.0,95997.0,0.15621729]
[1733267885869,0.15847822,95998.0,95997.0,0.15621729]
[1733267886565,0.21038265,95998.0,95997.0,0.15621729]
[1733267886770,0.15833365,95998.0,95997.0,0.15621729]
[1733267886966,0.15845079,95998.0,95997.0,0.15621729]
[1733267887472,0.007,95998.0,95997.0,0.15621729]
[1733267887679,0.19361164,95998.0,95997.0,0.15621729]
[1733267887870,0.24423653,95998.0,95997.0,0.15621729]
[1733267888272,0.24427307,95998.0,95997.0,0.15621729]
[1733267888878,0.05762489,95998.0,95997.0,0.15621729]
[1733267890174,0.19364818,95998.0,95997.0,0.15621729]
[1733267890380,0.24427307,95998.0,95997.0,0.15621729]
[1733267890682,0.05762489,95998.0,95997.0,0.15621729]
[1733267891276,0.05762489,95998.0,95997.0,0.32109729]
[1733267891277,0.16618396,95998.0,95997.0,0.32109729]
[1733267891576,0.21823296,95998.0,95997.0,0.32109729]
[1733267891782,0.21823296,95998.0,95997.0,0.15621729]
[1733267892583,0.16618396,95998.0,95997.0,0.15621729]
[1733267892784,0.16618396,95998.0,95997.0,0.51701729]
[1733267893081,0.05762489,95998.0,95997.0,0.51701729]
[1733267893269,0.16629846,95998.0,95997.0,0.51701729]
[1733267893468,0.16633189,95998.0,95997.0,0.51701729]
[1733267893671,0.007,95998.0,95997.0,0.51701729]
[1733267893871,0.05762489,95998.0,95997.0,0.51701729]
[1733267894074,0.03190597,95998.0,95997.0,0.51701729]
[1733267894279,0.18689824,96002.0,95997.0,0.51701729]
[1733267894481,0.21773579,96013.0,96012.0,0.052041]
[1733267894684,0.10878367,96013.0,96012.0,0.216921]
[1733267894873,0.10878367,96013.0,96012.0,0.21705103]
[1733267895074,0.10878367,96013.0,96012.0,0.32120413]
[1733267895681,0.11721402,96013.0,96012.0,0.32120413]
[1733267896475,0.11721402,96013.0,96012.0,0.35129157]
[1733267896979,0.11721402,96013.0,96012.0,0.35329157]
[1733267897175,0.10821402,96013.0,96012.0,0.35629157]
[1733267898179,0.0026,96020.0,96019.0,0.052037]
[1733267898386,0.0026,96020.0,96012.0,0.35629157]
[1733267898387,0.4055,96027.0,96020.0,0.052037]
[1733267898388,0.21773579,96021.0,96020.0,0.052037]
[1733267898583,0.21773579,96021.0,96014.0,0.0026]
[1733267898886,0.21773579,96019.0,96015.0,0.052039]
[1733267899084,0.32674389,96018.0,96017.0,0.052038]
[1733267899284,0.23563766,96018.0,96016.0,0.052039]
[1733267899482,0.1090081,96017.0,96016.0,0.052039]
[1733267899679,0.24874441,96023.0,96016.0,0.052039]
[1733267899877,0.1090081,96022.0,96021.0,0.052036]
[1733267900183,0.32741368,96024.0,96016.0,0.15618776]
[1733267900486,0.21821443,96024.0,96023.0,0.052035]
[1733267901187,0.32740571,96024.0,96023.0,0.15617617]
[1733267901388,0.10919128,96024.0,96023.0,0.15617617]
[1733267901687,0.10919128,96024.0,96023.0,0.18655138]
[1733267901875,0.23592124,96024.0,96023.0,0.18655138]
[1733267902675,0.32733316,96024.0,96023.0,0.18655138]
[1733267902883,0.10919128,96024.0,96023.0,0.18655138]
[1733267903079,0.10939126,96025.0,96023.0,0.18655138]
[1733267903285,0.10939126,96024.0,96023.0,0.18655138]
[1733267903687,0.11039126,96024.0,96023.0,0.18655138]
[1733267903884,0.001,96024.0,96023.0,0.18655138]
[1733267904087,0.004,96024.0,96023.0,0.18655138]
[1733267904289,0.24037098,96024.0,96023.0,0.18655138]
[1733267904489,0.11339126,96024.0,96023.0,0.18655138]
[1733267904785,0.11239126,96024.0,96023.0,0.18655138]
[1733267906589,0.003,96024.0,96023.0,0.15617617]
[1733267906787,0.22099833,96024.0,96023.0,0.15617617]
[1733267906983,0.33039169,96024.0,96023.0,0.15617617]
[1733267907197,0.13048527,96024.0,96023.0,0.15617617]
[1733267907682,0.003,96024.0,96023.0,0.15617617]
[1733267908285,0.11239126,96024.0,96023.0,0.15617617]
[1733267908595,0.22099783,96024.0,96023.0,0.15617617]
[1733267908798,0.003,96024.0,96023.0,0.15617617]
[1733267909087,0.11239126,96024.0,96023.0,0.15617617]
[1733267909390,0.003,96024.0,96023.0,0.15617617]
[1733267909589,0.11287512,96024.0,96023.0,0.15617617]
[1733267909794,0.16348294,96024.0,96023.0,0.15617617]
[1733267910295,0.05360782,96024.0,96023.0,0.15617617]
[1733267910893,0.18980006,96024.0,96023.0,0.15617617]
[1733267911086,0.05360782,96024.0,96023.0,0.15617617]
[1733267911781,0.05260782,96024.0,96023.0,0.15617617]
[1733267912194,0.05160782,96024.0,96023.0,0.15617617]
[1733267912392,0.05060782,96024.0,96023.0,0.15617617]
[1733267912693,0.05060244,96024.0,96023.0,0.15617617]
[1733267912889,0.00011754,96038.0,96023.0,0.15617617]
[1733267912890,0.18670484,96030.0,96023.0,0.15617617]
[1733267913087,0.1867026,96030.0,96028.0,0.052032]
[1733267913284,0.05060158,96029.0,96028.0,0.052032]
[1733267913790,0.05060144,96029.0,96028.0,0.15617417]
[1733267914089,0.05060184,96029.0,96028.0,0.10414117]
[1733267914287,0.00011754,96038.0,96030.0,0.052032]
[1733267914495,0.05060184,96031.0,96030.0,0.052032]
[1733267914788,0.05060184,96036.0,96035.0,0.052029]
[1733267914993,0.00011754,96038.0,96037.0,0.052028]
[1733267915696,0.37939691,96038.0,96037.0,0.052028]
[1733267915891,0.16140018,96038.0,96037.0,0.052028]
[1733267916189,0.052028,96037.0,96032.0,0.054631]
[1733267916395,0.21631164,96036.0,96035.0,0.052029]
[1733267917094,0.16428264,96036.0,96035.0,0.15615716]
[1733267917594,0.220791,96036.0,96035.0,0.15615716]
[1733267917794,0.17128264,96036.0,96035.0,0.15615716]
[1733267918196,0.24582514,96036.0,96035.0,0.15615716]
[1733267918391,0.16828264,96036.0,96035.0,0.15615716]
[1733267919086,0.17097995,96036.0,96035.0,0.15615716]
[1733267920292,0.22300795,96036.0,96032.0,0.0026]
[1733267920488,0.05203,96034.0,96033.0,0.05203]
[1733267920799,0.34123542,96034.0,96033.0,0.05203]
[1733267921292,0.052033,96028.0,96027.0,0.0104]
[1733267921493,0.052035,96026.0,96025.0,0.052034]
[1733267921892,0.34134097,96026.0,96025.0,0.052034]
[1733267922092,0.26329438,96026.0,96025.0,0.052034]
[1733267922291,0.21787045,96026.0,96025.0,0.156173]
[1733267922496,0.21787045,96026.0,96025.0,0.104139]
[1733267922497,0.05060476,96026.0,96025.0,0.104139]
[1733267922687,0.17893359,96027.0,96026.0,0.052034]
[1733267922887,0.17893373,96027.0,96026.0,0.052034]
[1733267923087,0.17893373,96027.0,96026.0,0.156173]
[1733267923088,0.0506085,96027.0,96026.0,0.156173]
[1733267923296,0.1780993,96027.0,96026.0,0.156173]
[1733267923500,0.0506085,96027.0,96026.0,0.156173]
[1733267923897,0.26862598,96027.0,96026.0,0.156173]
[1733267924093,0.17826138,96027.0,96026.0,0.156173]
[1733267924395,0.15445862,96027.0,96026.0,0.156173]
[1733267924597,0.052038,96022.0,96016.0,0.0104]
[1733267924900,0.63088012,96020.0,96019.0,0.052038]
[1733267925101,0.54050455,96020.0,96019.0,0.052038]
[1733267925298,0.76855881,96020.0,96019.0,0.052038]
[1733267925694,0.51957479,96020.0,96019.0,0.052038]
[1733267925889,0.49854411,96020.0,96019.0,0.052038]
[1733267926299,0.49854411,96020.0,96019.0,0.053038]
[1733267927000,0.7477291,96020.0,96019.0,0.053038]
[1733267927501,0.49854411,96020.0,96019.0,0.053038]
[1733267927702,0.49813201,96020.0,96019.0,0.053038]
[1733267928494,0.49803041,96020.0,96019.0,0.053038]
[1733267929697,0.49803041,96020.0,96019.0,0.001]
[1733267930000,0.64308948,96020.0,96019.0,0.001]
[1733267930204,0.67298329,96020.0,96019.0,0.001]
[1733267930703,0.95320958,96020.0,96019.0,0.001]
[1733267931096,0.67298329,96020.0,96019.0,0.001]
[1733267931295,0.52792422,96020.0,96019.0,0.001]
[1733267931697,0.49803041,96020.0,96019.0,0.001]
[1733267932107,0.60817799,96020.0,96019.0,0.001]
[1733267932405,0.75380325,96020.0,96019.0,0.001]
[1733267932605,0.75380325,96020.0,96019.0,0.053038]
[1733267933301,0.72776131,96020.0,96019.0,0.053038]
[1733267933502,0.83111403,96020.0,96019.0,0.053038]
[1733267933702,0.58213605,96020.0,96019.0,0.053038]
[1733267935509,0.53009805,96020.0,96019.0,0.053038]
[1733267936698,0.77899085,96020.0,96019.0,0.053038]
[1733267937111,0.53009805,96020.0,96019.0,0.053038]
[1733267937307,0.53009805,96020.0,96019.0,0.143038]
[1733267937818,0.53159919,96020.0,96019.0,0.143038]
[1733267938109,0.11050273,96020.0,96019.0,0.24718351]
[1733267938698,0.0026,96023.0,96022.0,0.052036]
[1733267939214,0.11314207,96023.0,96022.0,0.052036]
[1733267939507,0.0026,96023.0,96022.0,0.15618151]
[1733267939808,0.3009208,96037.0,96022.0,0.15618151]
[1733267939809,0.21778378,96033.0,96025.0,0.052035]
[1733267940009,0.052027,96040.0,96025.0,0.052035]
[1733267940010,0.21778378,96035.0,96034.0,0.05203]
[1733267940210,0.11045331,96035.0,96034.0,0.05203]
[1733267940399,0.11045331,96035.0,96034.0,0.15617225]
[1733267941112,0.11445331,96035.0,96034.0,0.15617225]
[1733267941405,0.12245331,96035.0,96034.0,0.15617225]
[1733267941813,0.11845331,96035.0,96034.0,0.15617225]
[1733267942020,0.12145331,96035.0,96034.0,0.15617225]
[1733267942808,0.011,96035.0,96034.0,0.15617225]
[1733267943004,0.12075451,96035.0,96034.0,0.15617225]
[1733267943206,0.12075451,96035.0,96034.0,0.18620583]
[1733267943207,0.11875451,96035.0,96034.0,0.18620583]
[1733267944738,0.11875451,96035.0,96034.0,0.15617225]
[1733267945033,0.17078351,96035.0,96034.0,0.15617225]
[1733267945730,0.15138315,96035.0,96034.0,0.15617225]
[1733267946133,0.15138315,96035.0,96034.0,0.10414225]
[1733267946134,0.27584007,96035.0,96034.0,0.10414225]
[1733267946330,0.052035,96027.0,96026.0,0.052034]
[1733267946530,0.412835,96027.0,96026.0,0.052034]
[1733267946727,0.052035,96024.0,96022.0,0.05152332]
[1733267946925,0.21783373,96023.0,96017.0,0.1574]
[1733267947131,0.21783373,96023.0,96022.0,0.052036]
[1733267947132,0.052037,96023.0,96022.0,0.052036]
[1733267947432,0.17873212,96023.0,96022.0,0.052036]
[1733267947631,0.42762492,96023.0,96022.0,0.052036]
[1733267948136,0.17873212,96023.0,96022.0,0.052036]
[1733267948434,0.052037,96023.0,96022.0,0.052036]
[1733267948638,0.052037,96020.0,96019.0,0.094]
[1733267949335,0.412837,96020.0,96019.0,0.094]
[1733267949635,0.96414455,96020.0,96019.0,0.094]
[1733267949832,0.68402862,96020.0,96019.0,0.09]
[1733267950328,0.68381231,96020.0,96019.0,0.09]
[1733267950638,0.68381231,96020.0,96019.0,0.096]